bitfinex/quotes_ETHUSD_20260208
["timestamp","ask_amount","ask_price","bid_price","bid_amount"]
[1770541966243,1.56895424,2109.2,2108.4,1.18572408]
[1770541966416,1.18597365,2109.4,2108.0,3.315]
[1770541966621,1.56895424,2109.3,2108.3,1.1857571]
[1770541967240,1.60978723,2109.3,2108.4,3.315]
[1770541967430,1.56895424,2109.0,2107.7,2.137]
[1770541967637,1.56895424,2109.0,2108.2,1.18584289]
[1770541967835,1.56895424,2109.0,2108.3,3.315]
[1770541968037,2.75438846,2109.0,2108.3,2.69741983]
[1770541968550,1.56895424,2108.9,2108.3,2.69741983]
[1770541968719,1.56895424,2109.4,2108.3,3.88315437]
[1770541970847,2.75412627,2109.4,2108.3,3.88315437]
[1770541971616,1.56895424,2109.3,2108.3,3.88315437]
[1770541973427,1.56895424,2109.2,2108.3,1.18577983]
[1770541973642,1.56895424,2109.2,2108.4,3.315]
[1770541974654,1.56895424,2109.2,2108.5,3.315]
[1770541975045,2.7542405,2109.2,2108.5,3.315]
[1770541976163,2.7542405,2109.2,2108.5,3.316]
[1770541976164,1.56895424,2109.2,2108.5,3.316]
[1770541976661,2.75423922,2109.2,2108.5,3.316]
[1770541976866,2.75423922,2109.2,2108.6,3.315]
[1770541977243,1.56895424,2109.2,2108.6,3.315]
[1770541977445,2.75424058,2109.2,2108.6,3.315]
[1770541977650,2.75424058,2109.2,2108.5,0.001]
[1770541977843,1.56895424,2109.2,2108.6,3.315]
[1770541978741,2.75424432,2109.2,2108.6,3.315]
[1770541978940,1.56895424,2109.2,2108.6,3.315]
[1770541979468,0.002,2109.5,2108.6,4.50061516]
[1770541979767,0.002,2109.5,2108.6,6.1515396]
[1770541982042,0.002,2109.5,2108.7,1.65092444]
[1770541982444,1.57095424,2109.5,2108.6,1.18561891]
[1770541982676,6.95691517,2109.5,2108.7,3.314]
[1770541982846,0.002,2109.5,2108.8,2.83643278]
[1770541983369,0.002,2109.5,2108.9,3.314]
[1770541984742,0.002,2109.5,2109.0,1.18539592]
[1770541988170,0.002,2109.9,2109.1,2.136]
[1770541988575,0.002,2109.9,2109.1,3.75654785]
[1770541988873,0.002,2109.9,2109.2,1.18528351]
[1770541989175,0.002,2109.9,2109.2,2.80583136]
[1770541989371,0.002,2109.9,2109.3,1.62054785]
[1770541989571,0.002,2109.9,2109.4,3.314]
[1770541989778,0.002,2109.9,2109.5,1.62054785]
[1770541990346,0.002,2109.9,2109.4,3.314]
[1770541990572,0.002,2109.9,2109.5,5.45]
[1770541991478,0.002,2109.9,2109.6,1.18505877]
[1770541992177,0.002,2110.4,2109.6,2.80560662]
[1770541992379,0.002,2110.3,2109.6,1.18505877]
[1770541992577,0.002,2110.3,2109.7,1.62054785]
[1770541992877,0.32103374,2110.6,2109.7,1.62054785]
[1770541993077,0.32103374,2110.6,2109.6,1.18505877]
[1770541993257,0.32103374,2110.6,2109.8,2.136]
[1770541993863,0.32103374,2110.6,2109.9,1.18489027]
[1770541994982,0.32103374,2110.6,2110.0,3.313]
[1770541995889,0.32103374,2110.6,2110.1,1.18477797]
[1770541997554,0.32103374,2110.6,2110.0,3.313]
[1770541997758,1.86137942,2110.6,2110.1,3.313]
[1770541998655,0.32103374,2110.6,2110.1,4.4977748]
[1770541999052,1.18421731,2111.1,2110.1,4.4977748]
[1770541999253,1.54034568,2111.0,2110.1,4.4977748]
[1770542000089,1.54034568,2111.0,2109.9,4.73911189]
[1770542000090,2.72462332,2111.0,2110.2,3.313]
[1770542000485,1.18419195,2111.2,2110.2,3.313]
[1770542000865,2.72453763,2111.2,2110.2,3.313]
[1770542001187,1.54034568,2111.1,2110.3,3.313]
[1770542001759,1.18419195,2111.2,2110.3,3.313]
[1770542001964,4.73626779,2111.4,2110.4,1.18460955]
[1770542001965,1.18411235,2111.3,2110.4,1.18460955]
[1770542002158,2.72445803,2111.3,2110.3,4.4976275]
[1770542002386,0.002,2110.9,2110.4,3.313]
[1770542002688,0.002,2110.9,2110.0,3.31981584]
[1770542002689,0.002,2110.9,2110.5,3.313]
[1770542003868,0.002,2110.9,2110.6,3.312]
[1770542008999,0.002,2110.9,2110.3,1.18463284]
[1770542009204,0.002,2110.9,2110.7,3.312]
[1770542012795,1.54034568,2110.7,2109.4,4.86427435]
[1770542013105,1.58117867,2110.4,2109.5,4.49710808]
[1770542013288,2.7249968,2110.4,2109.5,4.49710808]
[1770542013489,1.18465112,2110.4,2109.5,4.49710808]
[1770542014001,1.54034568,2110.5,2109.5,4.49710808]
[1770542014402,11.21783572,2110.7,2109.5,4.49710808]
[1770542014403,6.48,2110.7,2109.5,6.04124248]
[1770542014605,6.48,2110.7,2110.3,0.001]
[1770542014806,0.002,2110.9,2110.3,0.001]
[1770542014807,7.66634194,2110.9,2110.4,3.312]
[1770542015009,6.482,2110.9,2110.4,3.312]
[1770542015512,1.54034568,2110.8,2109.9,2.135]
[1770542015693,1.49954761,2110.5,2110.0,3.312]
[1770542015901,1.49954761,2110.5,2110.1,0.49154137]
[1770542016106,7.70717156,2110.9,2110.1,0.49154137]
[1770542016107,0.1024,2110.8,2110.1,0.49154137]
[1770542016419,1.60194761,2110.8,2110.1,0.49154137]
[1770542017406,1.18444118,2110.7,2110.1,0.49154137]
[1770542018613,7.66444118,2110.7,2110.1,0.49154137]
[1770542019222,6.48,2110.7,2110.1,0.49154137]
[1770542019717,6.48,2110.7,2110.0,1.18479076]
[1770542019925,6.48,2110.7,2110.1,3.312]
[1770542020926,6.48,2110.7,2110.1,4.49677347]
[1770542021427,6.48,2110.7,2110.2,3.312]
[1770542022620,6.482,2110.9,2110.2,1.18472134]
[1770542022826,7.66633366,2110.9,2110.3,3.312]
[1770542023017,6.482,2110.9,2110.3,3.312]
[1770542023320,7.66634128,2110.9,2110.4,3.312]
[1770542023525,7.66634128,2110.9,2110.1,1.18477541]
[1770542023723,7.70717427,2110.9,2110.2,3.312]
[1770542024235,7.66634128,2110.9,2110.2,3.312]
[1770542024812,6.482,2110.9,2110.2,4.49672003]
[1770542025325,0.002,2110.9,2110.4,1.18459967]
[1770542025511,0.002,2110.9,2110.2,3.312]
[1770542025711,0.002,2110.9,2110.2,4.49672157]
[1770542026023,0.002,2110.9,2110.3,3.312]
[1770542026933,0.002,2110.9,2110.3,3.313]
[1770542027124,0.002,2110.7,2110.3,3.313]
[1770542027427,0.002,2110.7,2110.4,3.312]
[1770542028101,0.002,2110.7,2110.3,0.001]
[1770542028306,0.002,2110.7,2110.4,3.312]
[1770542029807,0.002,2110.7,2110.0,0.001]
[1770542029808,1.22727417,2110.7,2110.2,3.312]
[1770542030204,0.04283299,2110.7,2110.2,3.312]
[1770542030438,0.002,2110.7,2110.2,3.312]
[1770542030732,0.002,2110.7,2110.3,0.001]
[1770542031904,0.001,2110.7,2110.3,1.18466568]
[1770542032100,0.001,2110.7,2110.2,3.312]
[1770542032343,0.001,2110.7,2110.2,4.49670362]
[1770542035355,0.001,2110.7,2110.2,6.09823812]
[1770542035555,0.001,2110.7,2110.3,1.6015345]
[1770542036436,0.001,2110.7,2110.3,2.78614415]
[1770542036648,0.001,2110.7,2110.2,4.49667909]
[1770542036829,0.001,2110.7,2110.2,3.312]
[1770542037031,0.001,2110.7,2110.1,1.1847746]
[1770542037245,0.001,2110.7,2110.2,3.312]
[1770542038135,0.001,2110.7,2110.2,4.49672053]
[1770542039153,0.001,2110.7,2110.2,3.312]
[1770542040854,0.001,2110.7,2110.2,4.49671785]
[1770542041051,0.001,2110.7,2110.4,0.001]
[1770542041228,0.001,2110.7,2110.2,4.49671785]
[1770542041428,0.002,2110.5,2110.2,6.09825235]
[1770542041860,0.002,2110.5,2110.2,3.312]
[1770542042243,0.002,2110.5,2110.1,0.001]
[1770542042563,0.002,2110.5,2110.2,3.312]
[1770542044552,0.002,2110.5,2110.1,0.001]
[1770542044755,0.002,2110.5,2110.3,3.312]
[1770542044966,1.50154761,2110.5,2110.1,0.001]
[1770542045132,1.50154761,2110.5,2110.0,1.001]
[1770542045133,1.18460955,2110.4,2110.0,1.001]
[1770542045335,1.22544254,2110.4,2110.0,1.001]
[1770542046766,1.18460955,2110.4,2110.0,1.001]
[1770542047155,1.18494644,2109.8,2108.7,1.35930937]
[1770542047355,1.18494644,2109.8,2109.0,3.314]
[1770542047669,1.18494644,2109.8,2109.0,3.312]
[1770542047670,1.47516299,2109.8,2109.0,3.312]
[1770542048038,0.04083299,2109.6,2109.0,3.314]
[1770542049146,0.04083299,2109.6,2109.0,0.002]
[1770542049351,1.51599598,2109.6,2109.0,3.314]
[1770542049753,1.47516299,2109.8,2109.0,3.314]
[1770542050255,1.47516299,2109.8,2109.0,3.312]
[1770542050468,1.47516299,2109.6,2109.0,0.002]
[1770542050846,0.04083299,2109.4,2109.0,0.002]
[1770542051268,1.47516299,2109.6,2109.0,0.002]
[1770542052067,1.47516299,2109.9,2109.0,0.002]
[1770542052259,0.1024,2109.8,2109.0,0.002]
[1770542052459,1.47516299,2109.9,2109.0,0.002]
[1770542052665,0.04083299,2109.7,2109.0,0.002]
[1770542053278,1.50338215,2110.4,2109.0,1.36943452]
[1770542053578,0.1024,2110.1,2109.0,1.36943452]
[1770542053910,1.40098215,2110.2,2109.0,1.36943452]
[1770542054283,0.14323299,2110.4,2109.0,1.36943452]
[1770542054583,0.1024,2110.4,2109.0,1.36943452]
[1770542054754,0.002,2110.5,2109.3,1.36743452]
[1770542054952,0.002,2110.2,2109.3,1.36743452]
[1770542055154,0.002,2110.2,2109.4,1.36943452]
[1770542055865,0.002,2110.4,2109.5,1.36823452]
[1770542056191,0.002,2110.4,2109.6,3.313]
[1770542056387,0.002,2110.4,2109.6,4.68043452]
[1770542057055,0.002,2110.4,2109.7,3.313]
[1770542057680,6.95293693,2109.8,2109.2,0.001]
[1770542057882,6.95293693,2109.4,2108.7,0.662]
[1770542058191,0.04083299,2109.5,2108.5,0.001]
[1770542059559,0.04083299,2109.7,2108.5,1.36843452]
[1770542059959,0.04083299,2109.4,2108.5,0.001]
[1770542060393,0.1024,2109.6,2108.5,0.001]
[1770542060765,6.48,2109.5,2108.5,0.001]
[1770542060958,0.04083299,2109.4,2108.5,0.001]
[1770542061492,0.04083299,2109.4,2108.6,3.313]
[1770542061691,6.48,2109.5,2108.6,3.313]
[1770542062101,2.37943861,2110.9,2108.7,1.36743452]
[1770542062102,7.88098215,2110.2,2108.7,1.36743452]
[1770542062263,6.48,2110.2,2108.7,1.36743452]
[1770542062467,0.04083299,2110.0,2108.7,1.36743452]
[1770542062970,0.04083299,2110.0,2108.8,3.313]
[1770542063170,0.04083299,2110.0,2108.8,4.68043452]
[1770542063374,0.1024,2110.1,2108.9,1.36743452]
[1770542064381,6.48,2110.2,2109.1,1.36743452]
[1770542065584,0.04083299,2110.3,2109.1,1.36743452]
[1770542066208,13.43493693,2110.4,2109.3,1.36743452]
[1770542066708,6.482,2110.4,2109.3,1.36743452]
[1770542068009,0.04083299,2110.3,2109.3,1.36743452]
[1770542068299,0.04083299,2110.3,2109.4,3.313]
[1770542068872,0.04083299,2110.3,2109.0,1.36743452]
[1770542068873,0.002,2110.0,2109.0,1.36743452]
[1770542069106,0.002,2110.0,2109.1,3.313]
[1770542071407,0.002,2110.0,2109.0,1.36743452]
[1770542071704,0.002,2110.0,2109.1,3.313]
[1770542072107,0.04083299,2109.9,2108.8,1.36843452]
[1770542072306,1.40298215,2110.0,2108.9,3.313]
[1770542072486,0.04083299,2109.9,2108.9,3.313]
[1770542072901,0.002,2110.0,2109.0,1.36743452]
[1770542074496,1.44181514,2109.9,2108.8,0.001]
[1770542074814,1.44181514,2109.9,2108.9,3.313]
[1770542076400,1.44181514,2109.9,2108.8,1.31790219]
[1770542076608,13.43493693,2110.0,2109.1,1.31690219]
[1770542076609,6.482,2110.0,2109.1,1.31690219]
[1770542077208,6.482,2110.0,2108.8,1.31790219]
[1770542077404,6.482,2110.0,2109.0,1.31690219]
[1770542077620,0.002,2110.0,2109.0,1.31690219]
[1770542078409,0.001,2110.7,2109.9,1.31690219]
[1770542078723,0.001,2110.7,2110.1,1.31690219]
[1770542079107,0.001,2110.7,2110.2,4.62990219]
[1770542079638,0.002,2110.9,2110.3,1.31690219]
[1770542081230,0.002,2110.7,2110.3,1.31690219]
[1770542085534,0.002,2110.7,2110.3,3.312]
[1770542086113,0.002,2110.7,2110.3,4.62890219]
[1770542086412,0.002,2110.7,2110.4,1.31690219]
[1770542086613,0.002,2110.7,2110.4,1.06690219]
[1770542089023,0.002,2110.7,2110.3,3.312]
[1770542090625,0.002,2110.7,2110.3,4.62890219]
[1770542090827,0.002,2110.7,2110.3,3.312]
[1770542091639,0.002,2110.7,2109.5,1.31690219]
[1770542092139,0.002,2110.7,2109.6,4.62890219]
[1770542093344,0.002,2110.5,2109.6,4.62890219]
[1770542094421,0.002,2110.5,2109.6,1.31690219]
[1770542094635,0.002,2110.5,2109.7,3.312]
[1770542094944,0.002,2110.5,2109.7,4.62890219]
[1770542096723,0.002,2110.5,2109.8,1.31690219]
[1770542097335,0.002,2110.5,2109.7,3.312]
[1770542097651,0.002,2110.5,2109.7,4.62890219]
[1770542100152,0.002,2110.5,2109.8,1.31690219]
[1770542102169,0.002,2110.5,2109.4,1.31690219]
[1770542102467,0.002,2110.5,2109.8,3.312]
[1770542102762,0.002,2110.5,2109.8,4.62890219]
[1770542103136,0.002,2110.5,2109.9,1.31690219]
[1770542103461,0.002,2110.7,2109.9,1.31690219]
[1770542103839,0.002,2110.7,2109.9,1.35773518]
[1770542104027,0.002,2110.7,2109.9,1.31690219]
[1770542104532,0.002,2110.7,2109.9,1.35773518]
[1770542104735,0.002,2110.9,2110.0,1.31690219]
[1770542106246,0.002,2110.9,2110.0,1.31790219]
[1770542106483,0.002,2110.5,2110.0,1.31790219]
[1770542106771,0.002,2110.9,2110.1,1.2867139]
[1770542106944,0.002,2110.7,2110.1,1.2867139]
[1770542107143,0.002,2110.9,2110.2,0.6]
[1770542107359,0.002,2110.9,2110.3,1.2867139]
[1770542108161,0.002,2110.9,2110.0,1.2877139]
[1770542108459,0.002,2110.9,2110.4,3.312]
[1770542108656,0.002,2110.9,2110.1,3.312]
[1770542108657,1.23644956,2110.9,2110.1,3.312]
[1770542109352,1.23644956,2110.9,2110.0,0.001]
[1770542109563,1.23644956,2110.9,2110.1,3.312]
[1770542109765,1.23444956,2110.8,2110.1,3.312]
[1770542110366,6.482,2110.9,2110.1,3.312]
[1770542110976,6.482,2110.9,2110.1,4.5987139]
[1770542111377,6.482,2110.9,2110.2,1.2867139]
[1770542111689,6.482,2110.9,2110.1,3.312]
[1770542112098,6.482,2110.9,2110.0,0.001]
[1770542112268,1.27528255,2110.8,2109.8,0.001]
[1770542112701,1.23444956,2110.4,2109.8,0.001]
[1770542113861,1.23444956,2110.4,2109.4,3.312]
[1770542115162,0.04083299,2110.2,2109.4,3.312]
[1770542115366,1.28843021,2110.1,2109.4,3.312]
[1770542115595,2.47321591,2110.1,2109.4,3.312]
[1770542115797,1.1847857,2110.1,2109.4,3.312]
[1770542116092,2.47321591,2110.1,2109.3,3.312]
[1770542117300,1.1847857,2110.1,2109.3,3.312]
[1770542117594,1.28843021,2110.2,2109.3,3.312]
[1770542117970,1.28843021,2110.2,2109.3,3.3128]
[1770542118571,1.28843021,2110.2,2109.6,0.001]
[1770542118993,7.76843021,2110.2,2109.6,0.001]
[1770542120201,6.48,2110.2,2109.6,0.001]
[1770542122178,6.482,2110.5,2109.6,0.001]
[1770542122377,7.66655745,2110.5,2109.6,0.001]
[1770542123489,7.66655745,2110.5,2109.4,3.314]
[1770542123490,1.3292632,2110.3,2109.4,3.314]
[1770542124611,2.47315203,2110.2,2109.4,3.314]
[1770542125291,1.18472182,2110.2,2109.4,3.314]
[1770542127603,2.47315203,2110.2,2109.4,3.314]
[1770542127811,1.28843021,2110.0,2109.4,0.001]
[1770542128116,1.28843021,2109.8,2109.2,0.001]
[1770542128409,7.76843021,2109.8,2109.2,0.001]
[1770542129055,1.1850026,2109.7,2109.2,0.001]
[1770542129911,8.95343281,2109.7,2109.2,0.001]
[1770542130513,8.95343281,2109.7,2109.0,0.001]
[1770542130894,6.48,2109.7,2109.1,1.18529924]
[1770542131219,6.48,2109.7,2109.2,1.21775867]
[1770542131408,0.002,2110.5,2109.3,1.21775867]
[1770542131584,1.18460955,2110.4,2109.3,1.21775867]
[1770542131918,1.22741878,2110.5,2109.3,1.21775867]
[1770542132216,1.22741878,2110.5,2109.4,0.001]
[1770542132217,1.28843021,2110.4,2109.4,0.001]
[1770542132393,0.002,2110.0,2109.4,0.001]
[1770542133493,0.002,2110.0,2109.5,3.313]
[1770542134620,0.002,2110.0,2109.4,0.001]
[1770542140132,0.002,2110.0,2109.4,0.00014391]
[1770542141332,7.47523867,2109.9,2109.1,0.001]
[1770542141635,1.19878847,2109.8,2109.1,3.314]
[1770542142414,1.1850026,2109.7,2109.1,3.314]
[1770542142801,7.42055081,2109.9,2109.1,4.4993261]
[1770542143002,7.42055081,2109.9,2109.1,5.73461413]
[1770542143232,7.42055081,2109.9,2109.1,4.54928803]
[1770542143408,7.42055081,2109.9,2109.1,3.314]
[1770542143801,1.19878847,2109.4,2108.8,0.001]
[1770542144003,1.19878847,2109.3,2108.5,0.001]
[1770542144233,0.04083299,2109.2,2108.5,0.001]
[1770542144431,1.19878847,2109.3,2108.5,0.001]
[1770542144730,0.1024,2109.1,2108.1,1.23528803]
[1770542144927,1.30118847,2109.1,2107.9,1.18598392]
[1770542145103,1.30118847,2109.1,2107.9,2.42127195]
[1770542145303,1.30118847,2109.1,2108.0,2.42124189]
[1770542145606,4.7413131,2109.2,2108.1,2.42118917]
[1770542145807,4.78214609,2109.2,2108.1,2.42118917]
[1770542146006,4.78214609,2109.2,2108.1,1.23528803]
[1770542146208,5.98093456,2109.2,2108.1,1.23528803]
[1770542146719,0.04083299,2108.9,2107.8,2.42131686]
[1770542146913,1.23962146,2108.9,2107.9,3.314]
[1770542147508,0.04083299,2108.6,2107.9,3.314]
[1770542147931,1.19878847,2108.7,2107.9,3.314]
[1770542148416,1.30118847,2109.0,2107.8,2.4213036]
[1770542148618,1.18550834,2108.8,2107.8,2.4213036]
[1770542148837,0.04083299,2108.6,2107.6,4.50013003]
[1770542149002,1.19878847,2108.7,2107.7,1.18612566]
[1770542149336,4.74143486,2109.1,2107.9,1.23528803]
[1770542150215,10.97705207,2109.1,2107.9,1.23528803]
[1770542150943,12.17584054,2109.1,2108.0,1.18595825]
[1770542151722,12.17584054,2109.1,2107.9,2.42126448]
[1770542152036,1.23962146,2108.9,2107.7,3.314]
[1770542152416,1.23962146,2108.9,2107.7,4.54928803]
[1770542153340,1.18567702,2108.5,2107.7,4.54928803]
[1770542153514,2.38446549,2108.5,2107.7,3.314]
[1770542153712,8.6200827,2108.5,2107.7,3.314]
[1770542154042,7.42129423,2108.5,2107.7,3.314]
[1770542155042,7.42129423,2108.5,2107.8,1.23528803]
[1770542155043,6.23561721,2108.5,2107.8,1.23528803]
[1770542155418,6.23561721,2108.5,2108.0,1.23528803]
[1770542156048,1.18528351,2109.2,2108.0,1.23528803]
[1770542157442,1.18528351,2109.2,2108.2,1.23628803]
[1770542157815,0.002,2108.9,2108.2,1.23628803]
[1770542159532,0.002,2108.9,2108.4,1.23528803]
[1770542159712,0.002,2108.9,2108.2,0.001]
[1770542160137,0.002,2108.9,2108.2,2.42212971]
[1770542161569,0.002,2109.8,2108.7,1.23528803]
[1770542161717,0.002,2109.7,2108.9,1.23528803]
[1770542162080,0.002,2109.7,2109.0,3.315]
[1770542162223,0.002,2109.6,2109.0,3.315]
[1770542162553,0.004,2109.8,2109.1,1.23528803]
[1770542162942,0.002,2109.8,2109.1,1.27612102]
[1770542163156,0.002,2109.8,2109.1,1.23528803]
[1770542163157,0.002,2109.7,2109.1,1.23528803]
[1770542163543,0.002,2109.7,2109.2,2.42057154]
[1770542163768,0.002,2109.7,2109.3,1.23528803]
[1770542164073,0.002,2109.8,2109.3,1.23528803]
[1770542164401,0.002,2109.8,2108.3,1.23528803]
[1770542164684,0.04083299,2109.4,2108.6,1.18557042]
[1770542164876,0.04283299,2109.7,2108.5,2.42091668]
[1770542164877,1.24162146,2109.7,2108.5,2.42091668]
[1770542165048,1.24162146,2109.7,2108.5,2.4209368]
[1770542165367,1.24162146,2109.7,2108.5,1.23528803]
[1770542165542,1.18505877,2109.6,2108.5,2.42091559]
[1770542165747,1.18505877,2109.6,2108.5,1.23528803]
[1770542165947,1.18505877,2109.6,2108.5,2.42096338]
[1770542166265,0.002,2109.5,2108.4,3.314]
[1770542166591,0.002,2109.4,2108.5,1.18567008]
[1770542166871,0.002,2109.5,2108.5,1.18567008]
[1770542167371,0.002,2109.4,2108.5,1.18567008]
[1770542167560,0.002,2109.5,2108.4,4.49969148]
[1770542167766,0.002,2109.4,2108.4,4.49969148]
[1770542167973,0.002,2109.5,2108.4,4.49969148]
[1770542168576,0.002,2109.4,2108.4,4.49969148]
[1770542168758,0.002,2109.5,2108.4,4.49969148]
[1770542169257,0.98705877,2109.6,2108.4,4.49969148]
[1770542169659,0.04083299,2109.4,2108.4,3.314]
[1770542170679,2.10926733,2109.6,2108.4,4.49973107]
[1770542171057,0.98705877,2109.6,2108.7,0.001]
[1770542171253,0.002,2109.2,2108.7,0.001]
[1770542171983,0.002,2109.2,2108.7,1.15810216]
[1770542174097,0.002,2109.2,2108.8,2.32751867]
[1770542174497,0.002,2109.2,2108.9,1.14201033]
[1770542176500,0.002,2109.4,2109.0,5.64140625]
[1770542177679,0.004,2109.4,2109.0,5.64140625]
[1770542177998,0.004,2109.4,2109.0,4.45601033]
[1770542178364,0.004,2109.4,2109.0,3.314]
[1770542182664,0.002,2109.8,2109.1,1.14201033]
[1770542183476,0.0028,2110.0,2109.1,1.14201033]
[1770542184289,0.0028,2110.0,2109.3,1.14201033]
[1770542184795,0.0028,2110.0,2109.5,1.14201033]
[1770542184976,0.0028,2110.0,2109.7,1.14201033]
[1770542186087,1e-08,2110.2,2109.7,1.14201033]
[1770542186598,1e-08,2110.2,2109.8,1.18494644]
[1770542186804,1e-08,2110.2,2109.9,1.14201033]
[1770542187206,1e-08,2110.2,2109.8,1.18494644]
[1770542187378,1e-08,2110.2,2109.6,4.45601033]
[1770542187379,1e-08,2110.2,2109.9,3.314]
[1770542190978,1e-08,2110.2,2110.0,1.14201033]
[1770542191198,1e-08,2110.2,2109.9,4.49888075]
[1770542192210,1e-08,2110.2,2109.9,3.314]
[1770542192902,1e-08,2110.2,2109.9,4.49887769]
[1770542193786,0.002,2110.3,2109.9,4.49887769]
[1770542193787,0.002,2110.3,2110.0,1.14201033]
[1770542193987,0.002,2110.5,2110.0,1.14201033]
[1770542195514,0.002,2110.5,2110.2,1.14201033]
[1770542196114,0.002,2110.5,2110.1,1.18477797]
[1770542196791,0.002,2110.5,2110.1,2.27716232]
[1770542197201,0.002,2110.2,2110.1,2.27716232]
[1770542197399,0.002,2110.5,2110.1,2.27716232]
[1770542198929,0.002,2110.5,2109.9,3.314]
[1770542199130,0.002,2110.5,2110.0,1.1848308]
[1770542199422,0.002,2110.5,2109.9,3.314]
[1770542199423,0.002,2110.5,2109.9,4.49886109]
[1770542199600,0.002,2110.5,2110.0,1.1848186]
[1770542202222,0.002,2110.5,2110.1,3.312]
[1770542203331,0.002,2110.5,2110.1,4.40438435]
[1770542204118,0.002,2110.5,2110.1,3.312]
[1770542206015,1.03570124,2110.5,2109.2,1.09338435]
[1770542206223,1.03370124,2110.3,2109.2,2.27862972]
[1770542206427,1.03370124,2110.3,2109.2,0.001]
[1770542206727,1.03370124,2110.3,2109.2,3.313]
[1770542206930,1.07453423,2110.0,2109.2,0.001]
[1770542207127,1.07453423,2110.0,2109.0,0.001]
[1770542207740,1.03370124,2110.0,2109.0,0.001]
[1770542208316,2.21831079,2110.4,2109.1,1.09238435]
[1770542208943,2.21831079,2110.4,2109.2,1.09338435]
[1770542209518,0.002,2110.3,2109.2,1.09338435]
[1770542210537,0.002,2110.3,2109.3,2.27761167]
[1770542210849,0.002,2110.3,2109.4,1.09238435]
[1770542212534,0.002,2110.3,2109.2,0.001]
[1770542213627,1.03570124,2110.3,2109.2,0.001]
[1770542214229,1.03570124,2110.3,2109.2,1.09338435]
[1770542214628,1.18472182,2110.2,2109.2,2.27865556]
[1770542215436,1.18472182,2110.2,2109.2,1.09338435]
[1770542215647,1.18472182,2110.2,2109.2,4.40638435]
[1770542215846,1.18472182,2110.2,2109.3,1.09238435]
[1770542217765,1.03370124,2110.1,2109.2,0.001]
[1770542219130,6.14894937,2110.3,2109.2,1.09338435]
[1770542219440,7.33365128,2110.3,2109.2,1.09338435]
[1770542220258,7.33362105,2110.3,2109.2,1.09338435]
[1770542221151,6.14894937,2110.3,2109.2,1.09338435]
[1770542221465,0.002,2110.5,2109.5,1.09238435]
[1770542221635,0.002,2110.1,2109.7,1.09238435]
[1770542221836,0.002,2110.5,2109.7,1.09238435]
[1770542222857,0.002,2110.9,2110.1,1.09238435]
[1770542223165,1e-08,2111.2,2110.5,1.09238435]
[1770542223364,1e-08,2111.2,2110.7,1.09238435]
[1770542223735,0.002,2111.4,2111.0,1.09238435]
[1770542223957,0.002,2111.8,2111.0,1.09238435]
[1770542224532,0.002,2111.8,2111.2,1.09238435]
[1770542224739,1.18330134,2112.8,2111.6,1.09238435]
[1770542224952,1.03370124,2112.7,2111.7,3.312]
[1770542225162,1.03370124,2112.7,2111.8,3.312]
[1770542225363,1.18337593,2112.6,2111.8,4.4958037]
[1770542225536,1.18524843,2112.9,2111.9,1.09238435]
[1770542225740,1.18524843,2112.9,2111.8,3.312]
[1770542226065,1.18524843,2112.9,2111.6,2.22152848]
[1770542226066,2.17351253,2112.9,2111.9,3.312]
[1770542227654,0.9882641,2112.8,2111.9,3.312]
[1770542227863,1.02909709,2112.7,2111.9,3.312]
[1770542228167,1.02909709,2112.7,2111.3,1.03763405]
[1770542228539,0.9882641,2112.7,2111.4,2.22167565]
[1770542228742,3.311,2112.8,2111.6,1.18389877]
[1770542228938,3.311,2112.8,2111.6,1.03763405]
[1770542229348,1.18331992,2112.7,2111.6,1.03763405]
[1770542230169,8.04427968,2112.8,2111.6,1.03763405]
[1770542230170,1.18330033,2112.8,2111.6,1.03763405]
[1770542231446,4.73505566,2112.9,2111.8,1.03763405]
[1770542231447,0.002,2112.9,2111.8,1.03763405]
[1770542233370,0.002,2112.9,2112.0,1.05396953]
[1770542233765,0.98948899,2112.9,2111.7,1.05396953]
[1770542234277,0.98948899,2112.9,2111.7,2.23784627]
[1770542234660,0.98948899,2112.9,2111.7,1.05396953]
[1770542235047,0.98948899,2112.9,2111.9,0.001]
[1770542235247,0.002,2112.9,2111.9,0.001]
[1770542235472,0.002,2112.7,2111.9,0.001]
[1770542235781,0.002,2112.7,2111.9,1.05496953]
[1770542236473,0.002,2112.7,2111.5,3.31]
[1770542236474,6.95362158,2112.3,2110.8,0.001]
[1770542236660,0.002,2112.7,2111.6,2.23790317]
[1770542236859,0.002,2112.7,2112.4,0.04083299]
[1770542237060,0.002,2112.7,2112.1,0.04083299]
[1770542237383,0.002,2112.7,2111.8,0.04083299]
[1770542237571,0.002,2112.7,2112.1,0.04083299]
[1770542238081,0.002,2112.7,2111.8,0.04083299]
[1770542238452,0.002,2112.7,2111.5,1.09480252]
[1770542238675,0.98948899,2112.7,2111.6,0.04083299]
[1770542239083,0.98948899,2112.7,2111.2,1.09480252]
[1770542239452,0.98748899,2112.5,2111.5,0.04083299]
[1770542239663,0.98748899,2112.3,2111.2,0.04083299]
[1770542240271,0.98748899,2112.3,2110.9,4.40480252]
[1770542240472,0.98748899,2112.3,2111.2,0.04083299]
[1770542241083,0.98748899,2112.3,2111.0,0.04083299]
[1770542241715,0.98748899,2112.1,2111.0,0.04083299]
[1770542242180,0.98748899,2112.1,2110.8,0.001]
[1770542242385,0.98748899,2112.1,2110.9,0.04083299]
[1770542243361,0.98748899,2112.1,2110.8,0.001]
[1770542243563,1.18371212,2112.0,2110.9,0.04083299]
[1770542243763,0.98748899,2111.9,2110.8,0.001]